[Event "Fagernes Open 2021"]
[Site "Fagernes"]
[Date "2021.10.16"]
[Round "8.5"]
[White "Carlin, Tormod"]
[Black "Kittilsen, Sigurd"]
[Result "0-1"]
[ECO "A45"]
[WhiteElo "1554"]
[BlackElo "1881"]
[Annotator "NA"]
[PlyCount "168"]
[EventDate "2021.10.10"]
[EventCountry "NOR"]
[SourceTitle "playchess.com"]
[Source "ChessBase"]
[SourceQuality "1"]
[TimeControl "40/5400+30:1800+30"]

1. d4 {[%emt 0:00:00]} Nf6 {[%emt 0:00:00]} 2. Bg5 {[%emt 0:00:00]} c5 {[%emt 0:00:00]} 3. Bxf6 {[%emt 0:00:00]} exf6 {[%emt 0:00:00]} 4. d5 {[%emt 0:00:00]} f5 {[%emt 0:00:00]} 5. c4 {[%emt 0:00:00]} a6 {[%emt 0:00:00]} 6. e3 {[%emt 0:00:00]} g6 {[%emt 0:00:00]} 7. Nc3 {[%emt 0:00:00]} Bg7 {[%emt 0:00:00]} 8. Qc2 {[%emt 0:00:00]} d6 {[%emt 0:00:24]} 9. Bd3 {[%emt 0:00:00]} Nd7 {[%emt 0:04:35]} 10. Nf3 {[%emt 0:00:14]} O-O {[%emt 0:03:44]} 11. O-O {[%emt 0:08:12]} Re8 {[%emt 0:07:19]} 12. Rfe1 {[%emt 0:05:00]} Ne5 {[%emt 0:05:21]} 13. Nxe5 {[%emt 0:03:37]} Rxe5 {[%emt 0:08:38]} 14. f4 {[%emt 0:06:30]} Re7 {[%emt 0:02:25]} 15. Re2 {[%emt 0:05:46]} Qa5 {[%emt 0:05:11]} 16. Rae1 {[%emt 0:08:26]} Bd7 {[%emt 0:00:59]} 17. e4 {[%emt 0:06:54]} Bd4+ {[%emt 0:03:10]} 18. Kf1 {[%emt 0:00:51]} Bxc3 {[%emt 0:11:13]} 19. bxc3 {[%emt 0:01:02]} fxe4 {[%emt 0:01:27]} 20. Rxe4 {[%emt 0:01:44]} Rxe4 {[%emt 0:00:59]} 21. Bxe4 {[%emt 0:18:40]} Re8 {[%emt 0:14:53]} 22. Bd3 {[%emt 0:00:00]} Rxe1+ {[%emt 0:02:25]} 23. Kxe1 {[%emt 0:00:00]} b5 {[%emt 0:00:34]} 24. cxb5 {[%emt 0:00:00]} axb5 {[%emt 0:00:18]} 25. f5 {[%emt 0:00:00]} c4 {[%emt 0:04:42]} 26. fxg6 {[%emt 0:00:00]} cxd3 {[%emt 0:00:35]} 27. gxh7+ {[%emt 0:00:00]} Kxh7 {[%emt 0:00:10]} 28. Qxd3+ {[%emt 0:00:00]} f5 {[%emt 0:02:32]} 29. Qh3+ {[%emt 0:04:19]} Kg7 {[%emt 0:00:22]} 30. Qg3+ {[%emt 0:00:45]} Kf7 {[%emt 0:00:24]} 31. Qf3 {[%emt 0:01:40]} Ke7 {[%emt 0:03:39]} 32. Qe3+ {[%emt 0:06:02]} Kd8 {[%emt 0:00:31]} 33. Qd2 {[%emt 0:02:37]} Qa4 {[%emt 0:00:33]} 34. g3 {[%emt 0:00:24]} Qe4+ {[%emt 0:00:54]} 35. Kf2 {[%emt 0:03:03]} Qh1 {[%emt 0:00:49]} 36. Ke3 {[%emt 0:00:10]} Qg1+ {[%emt 0:01:40]} 37. Kf4 {[%emt 0:01:45]} Qf1+ {[%emt 0:01:55]} 38. Kg5 {[%emt 0:00:18]} Qf3 {[%emt 0:02:41]} 39. a3 {[%emt 0:05:02]} Ke7 {[%emt 0:01:11]} 40. Kh6 {[%emt 0:00:43]} Kd8 {[%emt 0:12:22]} 41. Kg5 {[%emt 0:30:52]} Qg4+ {[%emt 0:01:00]} 42. Kf6 {[%emt 0:00:00]} Qg8 {[%emt 0:00:53]} 43. Qe3 {[%emt 0:00:00]} Qf8+ {[%emt 0:05:50]} 44. Kg6 {[%emt 0:00:00]} Be8+ {[%emt 0:01:30]} 45. Kg5 {[%emt 0:00:00]} Qg7+ {[%emt 0:11:44]} 46. Kxf5 {[%emt 0:00:00]} Bd7+ {[%emt 0:00:08]} 47. Ke4 {[%emt 0:00:00]} Qe5+ {[%emt 0:01:33]} 48. Kd3 {[%emt 0:00:00]} Qxd5+ {[%emt 0:00:21]} 49. Qd4 {[%emt 0:00:00]} Qf3+ {[%emt 0:01:12]} 50. Qe3 {[%emt 0:00:00]} Bf5+ {[%emt 0:01:51]} 51. Kd2 {[%emt 0:00:00]} Qd5+ {[%emt 0:00:55]} 52. Ke1 {[%emt 0:00:00]} Qh1+ {[%emt 0:00:11]} 53. Kd2 {[%emt 0:00:00]} Qxh2+ {[%emt 0:00:26]} 54. Ke1 {[%emt 0:00:00]} Qh1+ {[%emt 0:00:22]} 55. Kd2 {[%emt 0:00:00]} Qd5+ {[%emt 0:00:08]} 56. Ke1 {[%emt 0:00:00]} Qe6 {[%emt 0:00:59]} 57. Kd2 {[%emt 0:00:00]} Qxe3+ {[%emt 0:01:17]} 58. Kxe3 {[%emt 0:00:00]} Kd7 {[%emt 0:00:24]} 59. Kd4 {[%emt 0:00:00]} Be6 {[%emt 0:00:53]} 60. Ke4 {[%emt 0:00:00]} Kc6 {[%emt 0:00:20]} 61. Kd4 {[%emt 0:00:00]} Kb6 {[%emt 0:00:44]} 62. g4 {[%emt 0:00:00]} Ka5 {[%emt 0:00:16]} 63. g5 {[%emt 0:00:00]} Ka4 {[%emt 0:00:16]} 64. g6 {[%emt 0:00:00]} Kxa3 {[%emt 0:00:31]} 65. g7 {[%emt 0:00:00]} Kb2 {[%emt 0:00:46]} 66. Kd3 {[%emt 0:00:00]} Kb3 {[%emt 0:00:45]} 67. Kd2 {[%emt 0:00:00]} Kc4 {[%emt 0:00:41]} 68. Kc2 {[%emt 0:00:00]} d5 {[%emt 0:00:47]} 69. Kb2 {[%emt 0:00:00]} b4 {[%emt 0:00:25]} 70. cxb4 {[%emt 0:00:00]} Kxb4 {[%emt 0:00:07]} 71. Kc2 {[%emt 0:00:00]} Kc4 {[%emt 0:00:09]} 72. Kd2 {[%emt 0:00:00]} Kd4 {[%emt 0:00:07]} 73. Kc1 {[%emt 0:00:00]} Kd3 {[%emt 0:00:14]} 74. Kd1 {[%emt 0:00:00]} d4 {[%emt 0:00:09]} 75. Kc1 {[%emt 0:00:00]} Ke2 {[%emt 0:00:10]} 76. Kc2 {[%emt 0:00:00]} d3+ {[%emt 0:00:06]} 77. Kb2 {[%emt 0:00:00]} d2 {[%emt 0:00:06]} 78. Kc3 {[%emt 0:00:00]} d1=R {[%emt 0:00:36]} 79. Kc2 {[%emt 0:00:00]} Rd3 {[%emt 0:00:22]} 80. Kb2 {[%emt 0:00:00]} Kd2 {[%emt 0:00:18]} 81. Kb1 {[%emt 0:00:00]} Rb3+ {[%emt 0:01:07]} 82. Ka1 {[%emt 0:00:00]} Kc2 {[%emt 0:00:31]} 83. Ka2 {[%emt 0:00:00]} Rh3+ {[%emt 0:00:15]} 84. Ka1 {[%emt 0:00:00]} Rh1# {[%emt 0:00:14]} 0-1

[Event "Fagernes Open 2021"]
[Site "Fagernes"]
[Date "2021.10.16"]
[Round "8.6"]
[White "Ostensen, Nicolai Maxime"]
[Black "Stokhaug, Jon Arne"]
[Result "1/2-1/2"]
[ECO "A37"]
[WhiteElo "1768"]
[BlackElo "1861"]
[Annotator "NA"]
[PlyCount "36"]
[EventDate "2021.10.10"]
[EventCountry "NOR"]
[SourceTitle "playchess.com"]
[Source "ChessBase"]
[SourceQuality "1"]
[TimeControl "40/5400+30:1800+30"]

1. e4 {[%emt 0:00:00]} c5 {[%emt 0:00:00]} 2. Nf3 {[%emt 0:00:00]} Nc6 {[%emt 0:00:00]} 3. c4 {[%emt 0:00:00]} e5 {[%emt 0:00:00]} 4. g3 {[%emt 0:00:00]} g6 {[%emt 0:00:00]} 5. Bg2 {[%emt 0:00:00]} Bg7 {[%emt 0:00:00]} 6. O-O {[%emt 0:00:00]} Nge7 {[%emt 0:00:00]} 7. d3 {[%emt 0:00:00]} O-O {[%emt 0:00:00]} 8. Nc3 {[%emt 0:00:00]} d6 {[%emt 0:00:00]} 9. Bd2 {[%emt 0:00:00]} Rb8 {[%emt 0:00:00]} 10. Qc1 {[%emt 0:00:00]} Bg4 {[%emt 0:00:03]} 11. Ne1 {[%emt 0:03:02]} Nd4 {[%emt 0:02:07]} 12. f3 {[%emt 0:00:23]} Bd7 {[%emt 0:01:12]} 13. Nc2 {[%emt 0:04:00]} Nec6 {[%emt 0:03:25]} 14. Kh1 {[%emt 0:05:44]} Nxc2 {[%emt 0:08:50]} 15. Qxc2 {[%emt 0:00:25]} Nb4 {[%emt 0:00:13]} 16. Qb1 {[%emt 0:00:58]} Nc6 {[%emt 0:04:25]} 17. f4 {[%emt 0:11:29]} Nd4 {[%emt 0:01:50]} 18. fxe5 {[%emt 0:03:35]} dxe5 {[%emt 0:02:33]} 1/2-1/2

[Event "Fagernes Open 2021"]
[Site "Fagernes"]
[Date "2021.10.16"]
[Round "8.7"]
[White "Fiskaaen, Martin Holten"]
[Black "Stromhaug, Kristoffer Wang"]
[Result "1-0"]
[ECO "D43"]
[WhiteElo "1829"]
[BlackElo "1718"]
[Annotator "NA"]
[PlyCount "135"]
[EventDate "2021.10.10"]
[EventCountry "NOR"]
[SourceTitle "playchess.com"]
[Source "ChessBase"]
[SourceQuality "1"]
[TimeControl "40/5400+30:1800+30"]

1. d4 {[%emt 0:00:00]} d5 {[%emt 0:00:00]} 2. c4 {[%emt 0:00:00]} c6 {[%emt 0:00:00]} 3. Nf3 {[%emt 0:00:00]} Nf6 {[%emt 0:00:00]} 4. Nc3 {[%emt 0:00:00]} e6 {[%emt 0:00:00]} 5. Bg5 {[%emt 0:00:00]} h6 {[%emt 0:00:00]} 6. Bxf6 {[%emt 0:00:00]} Qxf6 {[%emt 0:00:00]} 7. e3 {[%emt 0:00:00]} g6 {[%emt 0:00:00]} 8. Bd3 {[%emt 0:00:00]} dxc4 {[%emt 0:01:23]} 9. Bxc4 {[%emt 0:00:00]} Bg7 {[%emt 0:01:03]} 10. O-O {[%emt 0:06:44]} O-O {[%emt 0:04:50]} 11. e4 {[%emt 0:14:52]} Nd7 {[%emt 0:05:13]} 12. e5 {[%emt 0:01:33]} Qe7 {[%emt 0:00:45]} 13. Ne4 {[%emt 0:01:11]} Rd8 {[%emt 0:03:22]} 14. Qb3 {[%emt 0:42:33]} c5 {[%emt 0:11:44]} 15. dxc5 {[%emt 0:01:44]} Nxc5 {[%emt 0:04:03]} 16. Qa3 {[%emt 0:04:12]} b6 {[%emt 0:02:19]} 17. Nxc5 {[%emt 0:02:11]} Qxc5 {[%emt 0:01:49]} 18. Qxc5 {[%emt 0:00:25]} bxc5 {[%emt 0:00:08]} 19. Rac1 {[%emt 0:05:36]} Bb7 {[%emt 0:01:51]} 20. Rfe1 {[%emt 0:00:13]} Rab8 {[%emt 0:08:08]} 21. b3 {[%emt 0:02:23]} Bxf3 {[%emt 0:05:32]} 22. gxf3 {[%emt 0:00:14]} Rd2 {[%emt 0:00:55]} 23. a4 {[%emt 0:02:24]} Rbd8 {[%emt 0:01:42]} 24. Re4 {[%emt 0:07:09]} h5 {[%emt 0:02:18]} 25. Rce1 {[%emt 0:01:20]} Kh7 {[%emt 0:03:20]} 26. Kg2 {[%emt 0:00:49]} g5 {[%emt 0:02:24]} 27. h4 {[%emt 0:02:27]} Kg6 {[%emt 0:03:15]} 28. Kg3 {[%emt 0:00:26]} Rd1 {[%emt 0:03:57]} 29. Rxd1 {[%emt 0:02:56]} Rxd1 {[%emt 0:00:14]} 30. Re3 {[%emt 0:00:31]} gxh4+ {[%emt 0:01:13]} 31. Kxh4 {[%emt 0:00:20]} Bh6 {[%emt 0:02:43]} 32. Rd3 {[%emt 0:02:47]} Bg5+ {[%emt 0:02:02]} 33. Kh3 {[%emt 0:00:55]} Re1 {[%emt 0:07:04]} 34. Rd7 {[%emt 0:00:11]} a5 {[%emt 0:01:32]} 35. Bd3+ {[%emt 0:00:37]} f5 {[%emt 0:00:45]} 36. exf6+ {[%emt 0:00:10]} Kxf6 {[%emt 0:00:02]} 37. Kg3 {[%emt 0:01:17]} Ke5 {[%emt 0:05:19]} 38. Ra7 {[%emt 0:00:17]} Bf4+ {[%emt 0:00:20]} 39. Kg2 {[%emt 0:00:13]} Bd2 {[%emt 0:00:57]} 40. Rh7 {[%emt 0:00:14]} Kd4 {[%emt 0:01:09]} 41. Bc4 {[%emt 0:30:10]} Re5 {[%emt 0:31:06]} 42. Rd7+ {[%emt 0:00:00]} Kc3 {[%emt 0:00:00]} 43. Rd3+ {[%emt 0:00:00]} Kc2 {[%emt 0:00:00]} 44. Rd6 {[%emt 0:00:00]} Rg5+ {[%emt 0:00:00]} 45. Kh1 {[%emt 0:00:00]} e5 {[%emt 0:00:00]} 46. Rd5 {[%emt 0:00:00]} Bb4 {[%emt 0:00:00]} 47. f4 {[%emt 0:00:00]} Rg4 {[%emt 0:00:00]} 48. fxe5 {[%emt 0:00:00]} Rd4 {[%emt 0:00:00]} 49. e6 {[%emt 0:00:00]} Rxd5 {[%emt 0:00:00]} 50. Bxd5 {[%emt 0:00:00]} c4 {[%emt 0:00:00]} 51. bxc4 {[%emt 0:00:00]} Kc3 {[%emt 0:00:00]} 52. f4 {[%emt 0:00:00]} Be7 {[%emt 0:00:00]} 53. f5 {[%emt 0:00:00]} Kb4 {[%emt 0:00:00]} 54. Kg2 {[%emt 0:00:37]} Kxa4 {[%emt 0:00:00]} 55. c5 {[%emt 0:00:25]} Kb5 {[%emt 0:00:00]} 56. c6 {[%emt 0:00:14]} Kb6 {[%emt 0:00:00]} 57. Kf3 {[%emt 0:00:21]} Kc7 {[%emt 0:00:00]} 58. Ke4 {[%emt 0:01:37]} Bf6 {[%emt 0:00:00]} 59. Kd3 {[%emt 0:01:37]} Kd6 {[%emt 0:00:00]} 60. Kc4 {[%emt 0:01:12]} Bd8 {[%emt 0:00:00]} 61. Kb5 {[%emt 0:00:45]} h4 {[%emt 0:00:00]} 62. Bg2 {[%emt 0:00:57]} h3 {[%emt 0:00:00]} 63. Bxh3 {[%emt 0:00:33]} a4 {[%emt 0:00:00]} 64. Bf1 {[%emt 0:01:09]} a3 {[%emt 0:00:00]} 65. Bc4 {[%emt 0:00:09]} Kc7 {[%emt 0:00:00]} 66. Kc5 {[%emt 0:00:24]} Be7+ {[%emt 0:00:00]} 67. Kd5 {[%emt 0:00:10]} Bf6 {[%emt 0:00:00]} 68. Bb3 {[%emt 0:00:24]} 1-0

[Event "Fagernes Open 2021"]
[Site "Fagernes"]
[Date "2021.10.16"]
[Round "8.8"]
[White "Lye, Sigurd"]
[Black "Amundsen, Ask"]
[Result "0-1"]
[ECO "B82"]
[WhiteElo "1821"]
[BlackElo "1816"]
[Annotator "NA"]
[PlyCount "80"]
[EventDate "2021.10.10"]
[EventCountry "NOR"]
[SourceTitle "playchess.com"]
[Source "ChessBase"]
[SourceQuality "1"]
[TimeControl "40/5400+30:1800+30"]

1. e4 {[%emt 0:00:00]} c5 {[%emt 0:00:00]} 2. Nf3 {[%emt 0:00:00]} e6 {[%emt 0:00:00]} 3. d4 {[%emt 0:00:00]} cxd4 {[%emt 0:00:00]} 4. Nxd4 {[%emt 0:00:00]} Nc6 {[%emt 0:00:00]} 5. Nc3 {[%emt 0:00:00]} Qc7 {[%emt 0:00:00]} 6. Be3 {[%emt 0:00:00]} a6 {[%emt 0:00:00]} 7. a3 {[%emt 0:00:00]} Nf6 {[%emt 0:00:00]} 8. f4 {[%emt 0:00:00]} d6 {[%emt 0:00:00]} 9. Qf3 {[%emt 0:00:00]} Be7 {[%emt 0:03:00]} 10. O-O-O {[%emt 0:00:00]} O-O {[%emt 0:02:49]} 11. h3 {[%emt 0:00:00]} Nxd4 {[%emt 0:12:47]} 12. Bxd4 {[%emt 0:04:19]} b5 {[%emt 0:01:46]} 13. g4 {[%emt 0:05:54]} Bb7 {[%emt 0:04:36]} 14. f5 {[%emt 0:09:20]} Rac8 {[%emt 0:05:47]} 15. Bd3 {[%emt 0:06:17]} e5 {[%emt 0:04:17]} 16. Be3 {[%emt 0:13:23]} d5 {[%emt 0:08:23]} 17. Nxd5 {[%emt 0:03:59]} Bxd5 {[%emt 0:02:07]} 18. exd5 {[%emt 0:00:34]} e4 {[%emt 0:00:35]} 19. Bxe4 {[%emt 0:00:44]} Nxe4 {[%emt 0:00:13]} 20. Qxe4 {[%emt 0:00:30]} Rfe8 {[%emt 0:00:41]} 21. Qd3 {[%emt 0:09:07]} Bxa3 {[%emt 0:05:04]} 22. Rhe1 {[%emt 0:07:16]} Bd6 {[%emt 0:07:15]} 23. Kb1 {[%emt 0:04:44]} a5 {[%emt 0:03:23]} 24. Bd4 {[%emt 0:03:23]} Red8 {[%emt 0:09:25]} 25. Re2 {[%emt 0:05:05]} b4 {[%emt 0:01:35]} 26. Rde1 {[%emt 0:06:49]} Qb7 {[%emt 0:03:54]} 27. Be5 {[%emt 0:02:02]} f6 {[%emt 0:04:26]} 28. Bxd6 {[%emt 0:03:37]} Rxd6 {[%emt 0:00:43]} 29. Re6 {[%emt 0:06:24]} Rxd5 {[%emt 0:10:52]} 30. Qb3 {[%emt 0:06:13]} Kf8 {[%emt 0:03:36]} 31. Qe3 {[%emt 0:02:16]} Qd7 {[%emt 0:01:36]} 32. Rc1 {[%emt 0:02:00]} a4 {[%emt 0:01:56]} 33. Qb6 {[%emt 0:00:55]} b3 {[%emt 0:02:18]} 34. c4 {[%emt 0:01:28]} Rxc4 {[%emt 0:03:38]} 35. Qb8+ {[%emt 0:01:00]} Kf7 {[%emt 0:00:16]} 36. Ree1 {[%emt 0:00:30]} Rxc1+ {[%emt 0:00:29]} 37. Rxc1 {[%emt 0:00:16]} Rd1 {[%emt 0:00:26]} 38. Qf4 {[%emt 0:00:50]} Qd3+ {[%emt 0:00:20]} 39. Ka1 {[%emt 0:00:16]} Qc2 {[%emt 0:00:51]} 40. Qc7+ {[%emt 0:00:43]} Qxc7 {[%emt 0:00:22]} 0-1

[Event "Fagernes Open 2021"]
[Site "Fagernes"]
[Date "2021.10.16"]
[Round "8.9"]
[White "Dulman, Egmond-Gabriel"]
[Black "Langvik, Ulrikke"]
[Result "0-1"]
[ECO "A84"]
[WhiteElo "2065"]
[BlackElo "1542"]
[Annotator "NA"]
[PlyCount "120"]
[EventDate "2021.10.10"]
[EventCountry "NOR"]
[SourceTitle "playchess.com"]
[Source "ChessBase"]
[SourceQuality "1"]
[TimeControl "40/5400+30:1800+30"]

1. d4 {[%emt 0:00:00]} d5 {[%emt 0:00:00]} 2. c4 {[%emt 0:00:00]} e6 {[%emt 0:00:00]} 3. Nc3 {[%emt 0:00:00]} c6 {[%emt 0:00:00]} 4. e3 {[%emt 0:00:00]} Bd6 {[%emt 0:00:00]} 5. f4 {[%emt 0:00:00]} f5 {[%emt 0:00:00]} 6. Nf3 {[%emt 0:00:00]} Nf6 {[%emt 0:00:00]} 7. Ne5 {[%emt 0:00:00]} Bxe5 {[%emt 0:04:10]} 8. fxe5 {[%emt 0:00:00]} Ne4 {[%emt 0:00:55]} 9. Nxe4 {[%emt 0:00:00]} fxe4 {[%emt 0:00:45]} 10. Qh5+ {[%emt 0:00:00]} g6 {[%emt 0:02:07]} 11. Qh6 {[%emt 0:00:00]} Qe7 {[%emt 0:01:28]} 12. Bd2 {[%emt 0:07:33]} b6 {[%emt 0:09:00]} 13. Be2 {[%emt 0:02:28]} Rf8 {[%emt 0:01:16]} 14. h4 {[%emt 0:01:31]} Na6 {[%emt 0:10:52]} 15. Qg5 {[%emt 0:02:15]} Rf7 {[%emt 0:12:31]} 16. b4 $16 {[%emt 0:12:53]} Nc7 {[%emt 0:14:16]} 17. Qxe7+ {[%emt 0:22:48]} Kxe7 {[%emt 0:00:16]} 18. h5 {[%emt 0:00:14]} g5 {[%emt 0:09:57]} 19. h6 {[%emt 0:00:44]} Bb7 {[%emt 0:09:12]} 20. Rh5 {[%emt 0:04:15]} Rg8 {[%emt 0:01:23]} 21. a4 {[%emt 0:06:31]} g4 {[%emt 0:11:20]} 22. cxd5 {[%emt 0:06:13]} cxd5 {[%emt 0:00:32]} 23. Rc1 {[%emt 0:02:44]} Kd7 {[%emt 0:00:03]} 24. g3 {[%emt 0:01:13]} Rf5 {[%emt 0:03:37]} 25. Rh4 {[%emt 0:01:08]} Rfg5 {[%emt 0:03:48]} 26. b5 {[%emt 0:03:44]} a6 {[%emt 0:04:01]} 27. bxa6 {[%emt 0:00:11]} Bxa6 {[%emt 0:00:10]} 28. Rxc7+ {[%emt 0:00:40]} Kxc7 {[%emt 0:00:10]} 29. Bxa6 {[%emt 0:00:05]} Rf5 {[%emt 0:00:20]} 30. Be2 {[%emt 0:01:36]} Kd7 {[%emt 0:01:21]} 31. Bb4 {[%emt 0:00:48]} Rfg5 {[%emt 0:00:44]} 32. Bb5+ {[%emt 0:01:17]} Kd8 {[%emt 0:00:42]} 33. Rh2 {[%emt 0:05:34]} Rf5 {[%emt 0:01:03]} 34. Rf2 {[%emt 0:01:07]} Rf3 {[%emt 0:00:46]} 35. Rxf3 {[%emt 0:00:08]} gxf3 {[%emt 0:00:02]} 36. Kf2 {[%emt 0:00:10]} Rg5 {[%emt 0:00:33]} 37. Bf8 {[%emt 0:01:39]} Rh5 {[%emt 0:00:03]} 38. g4 {[%emt 0:03:55]} Rh2+ {[%emt 0:00:57]} 39. Kg3 {[%emt 0:01:57]} Rg2+ {[%emt 0:00:50]} 40. Kh4 {[%emt 0:03:15]} Rb2 {[%emt 0:00:37]} 41. Kg3 {[%emt 0:32:16]} Rg2+ {[%emt 0:30:04]} 42. Kh4 {[%emt 0:00:05]} Rg1 {[%emt 0:00:00]} 43. g5 {[%emt 0:00:00]} f2 {[%emt 0:00:00]} 44. Bg7 {[%emt 0:00:00]} Ke7 {[%emt 0:00:00]} 45. Bf6+ {[%emt 0:00:00]} Kf7 {[%emt 0:00:00]} 46. Bd8 {[%emt 0:00:00]} f1=Q {[%emt 0:00:00]} 47. Bxf1 {[%emt 0:00:00]} Rxf1 {[%emt 0:00:00]} 48. Bxb6 {[%emt 0:00:00]} Rf3 {[%emt 0:00:00]} 49. a5 {[%emt 0:00:00]} Rxe3 {[%emt 0:00:00]} 50. a6 {[%emt 0:00:00]} Ra3 {[%emt 0:00:00]} 51. a7 {[%emt 0:00:00]} Ra1 {[%emt 0:00:00]} 52. Kg4 {[%emt 0:00:00]} Kg6 {[%emt 0:00:00]} 53. Kf4 {[%emt 0:00:00]} e3 {[%emt 0:00:00]} 54. Kxe3 {[%emt 0:00:00]} Kxg5 {[%emt 0:00:00]} 55. Kd3 {[%emt 0:00:00]} Kxh6 {[%emt 0:00:50]} 56. Kc3 {[%emt 0:00:00]} Ra6 {[%emt 0:04:24]} 57. Bc5 {[%emt 0:00:00]} Kg6 {[%emt 0:00:20]} 58. Kb4 {[%emt 0:00:00]} h5 {[%emt 0:01:05]} 59. Kb5 {[%emt 0:00:00]} Rxa7 {[%emt 0:00:16]} 60. Bxa7 {[%emt 0:00:00]} h4 {[%emt 0:00:03]} 0-1

[Event "Fagernes Open 2021"]
[Site "Fagernes"]
[Date "2021.10.16"]
[Round "8.10"]
[White "Unhjem, Bjorn Robert Lovoll"]
[Black "Cross, Jamie"]
[Result "1-0"]
[ECO "B01"]
[WhiteElo "1924"]
[BlackElo "1761"]
[Annotator "NA"]
[PlyCount "29"]
[EventDate "2021.10.10"]
[EventCountry "NOR"]
[SourceTitle "playchess.com"]
[Source "ChessBase"]
[SourceQuality "1"]
[TimeControl "40/5400+30:1800+30"]

1. e4 {[%emt 0:00:00]} d5 {[%emt 0:00:00]} 2. exd5 {[%emt 0:00:00]} Qxd5 {[%emt 0:00:00]} 3. Nf3 {[%emt 0:00:00]} Bg4 {[%emt 0:00:00]} 4. Be2 {[%emt 0:00:00]} Nc6 {[%emt 0:00:00]} 5. h3 {[%emt 0:11:06]} Bh5 {[%emt 0:00:44]} 6. Nc3 {[%emt 0:01:59]} Qd7 {[%emt 0:00:45]} 7. O-O {[%emt 0:00:45]} O-O-O {[%emt 0:01:33]} 8. d3 {[%emt 0:06:18]} h6 {[%emt 0:13:23]} 9. Nb5 {[%emt 0:06:51]} g5 {[%emt 0:04:11]} 10. d4 {[%emt 0:07:50]} a6 {[%emt 0:11:44]} 11. a4 {[%emt 0:01:47]} axb5 {[%emt 0:23:36]} 12. axb5 {[%emt 0:00:07]} Nb8 {[%emt 0:00:09]} 13. Ra8 {[%emt 0:11:41]} Nf6 {[%emt 0:08:24]} 14. Ne5 {[%emt 0:07:09]} Bxe2 {[%emt 0:04:34]} 15. Rxb8+ {[%emt 0:00:16]} 1-0

[Event "Fagernes Open 2021"]
[Site "Fagernes"]
[Date "2021.10.16"]
[Round "8.11"]
[White "Stenseng, Benjamin"]
[Black "Edvardsen, Ragnar"]
[Result "0-1"]
[ECO "B33"]
[WhiteElo "1590"]
[BlackElo "1865"]
[Annotator "NA"]
[PlyCount "84"]
[EventDate "2021.10.10"]
[EventCountry "NOR"]
[SourceTitle "playchess.com"]
[Source "ChessBase"]
[SourceQuality "1"]
[TimeControl "40/5400+30:1800+30"]

1. e4 {[%emt 0:00:00]} c5 {[%emt 0:00:00]} 2. Nf3 {[%emt 0:00:00]} Nc6 {[%emt 0:00:00]} 3. d4 {[%emt 0:00:00]} cxd4 {[%emt 0:00:00]} 4. Nxd4 {[%emt 0:00:00]} Nf6 {[%emt 0:00:00]} 5. Nc3 {[%emt 0:00:00]} e5 {[%emt 0:00:00]} 6. Nf3 {[%emt 0:00:00]} Bb4 {[%emt 0:00:00]} 7. Bc4 {[%emt 0:00:00]} O-O {[%emt 0:00:00]} 8. O-O {[%emt 0:05:55]} a6 {[%emt 0:11:52]} 9. Re1 {[%emt 0:04:16]} b5 {[%emt 0:03:20]} 10. Bd3 {[%emt 0:02:35]} d6 {[%emt 0:02:07]} 11. h3 {[%emt 0:00:59]} h6 {[%emt 0:00:41]} 12. Bd2 {[%emt 0:00:33]} Be6 {[%emt 0:01:48]} 13. a4 {[%emt 0:06:50]} Bxc3 {[%emt 0:02:48]} 14. Bxc3 {[%emt 0:00:42]} b4 {[%emt 0:02:11]} 15. Bd2 {[%emt 0:00:06]} a5 {[%emt 0:00:17]} 16. c3 {[%emt 0:07:19]} Rb8 {[%emt 0:03:06]} 17. cxb4 {[%emt 0:06:12]} Nxb4 {[%emt 0:00:42]} 18. Bf1 {[%emt 0:00:40]} Qb6 {[%emt 0:03:33]} 19. Be3 {[%emt 0:03:03]} Qb7 {[%emt 0:00:52]} 20. Nd2 {[%emt 0:10:47]} Rfc8 {[%emt 0:02:05]} 21. Rc1 {[%emt 0:05:00]} Rxc1 {[%emt 0:03:09]} 22. Qxc1 {[%emt 0:00:51]} Na2 {[%emt 0:00:41]} 23. Qc2 {[%emt 0:04:11]} Qxb2 {[%emt 0:01:10]} 24. Qc7 {[%emt 0:01:16]} Nc3 {[%emt 0:01:27]} 25. Qxa5 {[%emt 0:03:17]} Qb4 {[%emt 0:01:20]} 26. Qa7 {[%emt 0:02:47]} Nfxe4 {[%emt 0:01:27]} 27. Bd3 {[%emt 0:05:42]} d5 {[%emt 0:02:29]} 28. f3 {[%emt 0:03:00]} Nxd2 {[%emt 0:01:20]} 29. Bxd2 {[%emt 0:00:18]} Qd4+ {[%emt 0:00:48]} 30. Qxd4 {[%emt 0:00:49]} exd4 {[%emt 0:00:03]} 31. a5 {[%emt 0:01:01]} Rb2 {[%emt 0:00:41]} 32. Bf4 {[%emt 0:00:27]} Ra2 {[%emt 0:00:35]} 33. a6 {[%emt 0:00:27]} Bd7 {[%emt 0:00:36]} 34. Re7 {[%emt 0:01:54]} Bb5 {[%emt 0:00:25]} 35. a7 {[%emt 0:00:53]} Bxd3 {[%emt 0:00:36]} 36. Re8+ {[%emt 0:00:40]} Kh7 {[%emt 0:00:01]} 37. a8=Q {[%emt 0:00:30]} Rxa8 {[%emt 0:00:06]} 38. Rxa8 {[%emt 0:00:05]} Ne2+ {[%emt 0:00:47]} 39. Kf2 {[%emt 0:00:17]} Nxf4 {[%emt 0:00:16]} 40. Rd8 {[%emt 0:00:35]} Bc4 {[%emt 0:00:33]} 41. g3 {[%emt 0:35:05]} Nxh3+ {[%emt 0:31:51]} 42. Ke1 {[%emt 0:00:13]} Ng5 {[%emt 0:00:28]} 0-1

[Event "Fagernes Open 2021"]
[Site "Fagernes"]
[Date "2021.10.16"]
[Round "8.13"]
[White "Kveim, Ingvar Torjesen"]
[Black "Lystad, Maximilian L"]
[Result "1-0"]
[ECO "C02"]
[WhiteElo "1466"]
[BlackElo "1767"]
[Annotator "NA"]
[PlyCount "63"]
[EventDate "2021.10.10"]
[EventCountry "NOR"]
[SourceTitle "playchess.com"]
[Source "ChessBase"]
[SourceQuality "1"]
[TimeControl "40/5400+30:1800+30"]

1. e4 {[%emt 0:00:00]} e6 {[%emt 0:00:00]} 2. d4 {[%emt 0:00:00]} d5 {[%emt 0:00:00]} 3. e5 {[%emt 0:00:00]} c5 {[%emt 0:00:00]} 4. c3 {[%emt 0:00:00]} Qb6 {[%emt 0:00:00]} 5. Nf3 {[%emt 0:00:00]} Nc6 {[%emt 0:00:00]} 6. a3 {[%emt 0:00:00]} Nh6 {[%emt 0:00:00]} 7. b4 {[%emt 0:00:00]} cxd4 {[%emt 0:00:00]} 8. cxd4 {[%emt 0:00:00]} Nf5 {[%emt 0:00:00]} 9. Be3 {[%emt 0:00:00]} f6 {[%emt 0:00:00]} 10. b5 {[%emt 0:00:00]} Na5 {[%emt 0:02:34]} 11. Bd3 {[%emt 0:17:50]} Nxe3 {[%emt 0:02:42]} 12. fxe3 {[%emt 0:00:06]} Bd7 {[%emt 0:00:44]} 13. a4 {[%emt 0:01:04]} Bb4+ {[%emt 0:00:13]} 14. Nbd2 {[%emt 0:00:09]} Nc4 {[%emt 0:04:07]} 15. Qe2 {[%emt 0:02:12]} Nxd2 {[%emt 0:14:41]} 16. Nxd2 {[%emt 0:00:23]} Bxd2+ {[%emt 0:00:04]} 17. Qxd2 {[%emt 0:02:21]} O-O {[%emt 0:00:21]} 18. O-O {[%emt 0:03:03]} fxe5 {[%emt 0:00:08]} 19. dxe5 {[%emt 0:01:01]} Qc7 {[%emt 0:05:18]} 20. Qb2 {[%emt 0:00:24]} Qc5 {[%emt 0:01:47]} 21. Rfe1 {[%emt 0:18:52]} a6 {[%emt 0:05:36]} 22. bxa6 {[%emt 0:05:08]} bxa6 {[%emt 0:01:29]} 23. Rac1 {[%emt 0:01:58]} Qa7 {[%emt 0:00:09]} 24. Qe2 {[%emt 0:01:21]} Bxa4 {[%emt 0:19:26]} 25. Qg4 {[%emt 0:05:09]} Qe7 {[%emt 0:02:01]} 26. Qxa4 {[%emt 0:01:29]} Rab8 {[%emt 0:03:41]} 27. Qxa6 {[%emt 0:05:53]} Rb2 {[%emt 0:03:08]} 28. Rf1 {[%emt 0:05:36]} Rfb8 {[%emt 0:01:05]} 29. Qc6 {[%emt 0:08:18]} g6 {[%emt 0:01:41]} 30. Qc7 {[%emt 0:08:34]} Qg5 {[%emt 0:00:57]} 31. Qf7+ {[%emt 0:01:02]} Kh8 {[%emt 0:00:14]} 32. Qf6+ {[%emt 0:01:04]} 1-0